fUSD/lending_fUSD_20260510
["ID","MTS","AMOUNT","RATE_DAILY","PERIOD"]
[421942374,1778358655000,-1093.57565763,0.0003752,2]
[421942369,1778358655000,-309.51003376,0.0003752,2]
[421942313,1778358655000,-526.35006308,0.0003752,2]
[421942373,1778358655000,-300.0,0.0003752,2]
[421942345,1778358655000,-300.25804147,0.0003752,2]
[421942349,1778358655000,-1794.44722741,0.0003752,2]
[421942357,1778358655000,-300.0,0.0003752,2]
[421942351,1778358655000,-526.35006308,0.0003752,2]
[421942328,1778358655000,-309.51003376,0.0003752,2]
[421942317,1778358655000,-863.54795654,0.0003752,2]
[421942318,1778358655000,-310.57459591,0.0003752,2]
[421942321,1778358655000,-300.0,0.0003752,2]
[421942324,1778358655000,-300.0,0.0003752,2]
[421942325,1778358655000,-300.0,0.0003752,2]
[421942343,1778358655000,-301.48155124,0.0003752,2]
[421942319,1778358655000,-300.0,0.0003752,2]
[421942323,1778358655000,-451.4433371,0.0003752,2]
[421942320,1778358655000,-463.36822182,0.0003752,2]
[421942322,1778358655000,-576.5741924,0.0003752,2]
[421942327,1778358655000,-483.58541473,0.0003752,2]
[421942329,1778358655000,-300.0,0.0003752,2]
[421942331,1778358655000,-300.78604444,0.0003752,2]
[421942326,1778358655000,-300.0,0.0003752,2]
[421942332,1778358655000,-300.0,0.0003752,2]
[421942334,1778358655000,-301.02522804,0.0003752,2]
[421942341,1778358655000,-399.46100559,0.0003752,2]
[421942352,1778358655000,-1145.98254531,0.0003752,2]
[421942342,1778358655000,-725.31429466,0.0003752,2]
[421942337,1778358655000,-300.0,0.0003752,2]
[421942336,1778358655000,-603.8329142,0.0003752,2]
[421942338,1778358655000,-527.1999469,0.0003752,2]
[421942330,1778358655000,-1093.57565763,0.0003752,2]
[421942340,1778358655000,-892.47111794,0.0003752,2]
[421942339,1778358655000,-1065.80891604,0.0003752,2]
[421942335,1778358655000,-492.17769921,0.0003752,2]
[421942333,1778358655000,-300.0,0.0003752,2]
[421942403,1778358656000,-300.0,0.0003752,2]
[421942394,1778358656000,-1145.98254531,0.0003752,2]
[421942399,1778358656000,-300.0,0.0003752,2]
[421942397,1778358656000,-300.0,0.0003752,2]
[421942400,1778358656000,-300.0,0.0003752,2]
[421942401,1778358656000,-463.36822182,0.0003752,2]
[421942398,1778358656000,-310.57459591,0.0003752,2]
[421942406,1778358656000,-529.65673793,0.0003752,2]
[421942409,1778358656000,-483.58541473,0.0003752,2]
[421942407,1778358656000,-300.0,0.0003752,2]
[421942405,1778358656000,-300.0,0.0003752,2]
[421942408,1778358656000,-300.0,0.0003752,2]
[421942404,1778358656000,-451.4433371,0.0003752,2]
[421942410,1778358656000,-309.51003376,0.0003752,2]
[421942396,1778358656000,-863.54795654,0.0003752,2]
[421942414,1778358656000,-1093.57565763,0.0003752,2]
[421942402,1778358656000,-576.5741924,0.0003752,2]
[421942393,1778358656000,-526.35006308,0.0003752,2]
[421942417,1778358656000,-603.8329142,0.0003752,2]
[421942391,1778358656000,-1794.44722741,0.0003752,2]
[421942411,1778358656000,-300.0,0.0003752,2]
[421942376,1778358656000,-300.0,0.0003752,2]
[421942377,1778358656000,-300.0,0.0003752,2]
[421942378,1778358656000,-492.17769921,0.0003752,2]
[421942381,1778358656000,-527.1999469,0.0003752,2]
[421942379,1778358656000,-603.8329142,0.0003752,2]
[421942380,1778358656000,-300.0,0.0003752,2]
[421942382,1778358656000,-892.47111794,0.0003752,2]
[421942383,1778358656000,-1065.80891604,0.0003752,2]
[421942384,1778358656000,-399.46100559,0.0003752,2]
[421942386,1778358656000,-301.48155124,0.0003752,2]
[421942385,1778358656000,-725.31429466,0.0003752,2]
[421942387,1778358656000,-300.0,0.0003752,2]
[421942388,1778358656000,-300.25804147,0.0003752,2]
[421942390,1778358656000,-476.52148496,0.0003752,2]
[421942389,1778358656000,-853.29787158,0.0003752,2]
[421942392,1778358656000,-343.62395792,0.0003752,2]
[421942395,1778358656000,-309.26886467,0.0003752,2]
[421942413,1778358656000,-300.0,0.0003752,2]
[421942431,1778358656000,-526.35006308,0.0003752,2]
[421942412,1778358656000,-300.0,0.0003752,2]
[421942438,1778358656000,-463.36822182,0.0003752,2]
[421942439,1778358656000,-576.5741924,0.0003752,2]
[421942441,1778358656000,-505.29413056,0.0003752,2]
[421942444,1778358656000,-309.51003376,0.0003752,2]
[421942442,1778358656000,-300.0,0.0003752,2]
[421942440,1778358656000,-451.4433371,0.0003752,2]
[421942443,1778358656000,-483.58541473,0.0003752,2]
[421942445,1778358656000,-300.0,0.0003752,2]
[421942446,1778358656000,-1093.57565763,0.0003752,2]
[421942415,1778358656000,-342.06293514,0.0003752,2]
[421942448,1778358656000,-492.17769921,0.0003752,2]
[421942449,1778358656000,-300.0,0.0003752,2]
[421942450,1778358656000,-603.8329142,0.0003752,2]
[421942452,1778358656000,-527.1999469,0.0003752,2]
[421942454,1778358656000,-892.47111794,0.0003752,2]
[421942451,1778358656000,-300.0,0.0003752,2]
[421942453,1778358656000,-1065.80891604,0.0003752,2]
[421942437,1778358656000,-300.0,0.0003752,2]
[421942436,1778358656000,-310.57459591,0.0003752,2]
[421942447,1778358656000,-300.0,0.0003752,2]
[421942435,1778358656000,-302.87049101,0.0003752,2]
[421942433,1778358656000,-309.26886467,0.0003752,2]
[421942416,1778358656000,-492.17769921,0.0003752,2]
[421942418,1778358656000,-300.70732872,0.0003752,2]
[421942423,1778358656000,-725.31429466,0.0003752,2]
[421942419,1778358656000,-300.0,0.0003752,2]
[421942420,1778358656000,-527.1999469,0.0003752,2]
[421942422,1778358656000,-892.47111794,0.0003752,2]
[421942424,1778358656000,-399.46100559,0.0003752,2]
[421942421,1778358656000,-1065.80891604,0.0003752,2]
[421942430,1778358656000,-343.62395792,0.0003752,2]
[421942434,1778358656000,-863.54795654,0.0003752,2]
[421942425,1778358656000,-301.48155124,0.0003752,2]
[421942429,1778358656000,-1794.44722741,0.0003752,2]
[421942432,1778358656000,-1145.98254531,0.0003752,2]
[421942427,1778358656000,-300.25804147,0.0003752,2]
[421942428,1778358656000,-853.29787158,0.0003752,2]
[421942426,1778358656000,-300.0,0.0003752,2]
[421942480,1778358657000,-527.1999469,0.0003752,2]
[421942484,1778358657000,-725.31429466,0.0003752,2]
[421942483,1778358657000,-399.46100559,0.0003752,2]
[421942485,1778358657000,-301.48155124,0.0003752,2]
[421942487,1778358657000,-300.25804147,0.0003752,2]
[421942488,1778358657000,-853.29787158,0.0003752,2]
[421942492,1778358657000,-1145.98254531,0.0003752,2]
[421942493,1778358657000,-309.26886467,0.0003752,2]
[421942489,1778358657000,-1794.44722741,0.0003752,2]
[421942494,1778358657000,-863.54795654,0.0003752,2]
[421942490,1778358657000,-343.62395792,0.0003752,2]
[421942491,1778358657000,-526.35006308,0.0003752,2]
[421942499,1778358657000,-300.0,0.0003752,2]
[421942496,1778358657000,-463.36822182,0.0003752,2]
[421942497,1778358657000,-576.5741924,0.0003752,2]
[421942498,1778358657000,-451.4433371,0.0003752,2]
[421942508,1778358657000,-1065.80891604,0.0003752,2]
[421942501,1778358657000,-309.51003376,0.0003752,2]
[421942503,1778358657000,-1093.57565763,0.0003752,2]
[421942505,1778358657000,-603.8329142,0.0003752,2]
[421942500,1778358657000,-483.58541473,0.0003752,2]
[421942507,1778358657000,-527.1999469,0.0003752,2]
[421942506,1778358657000,-300.0,0.0003752,2]
[421942482,1778358657000,-1065.80891604,0.0003752,2]
[421942495,1778358657000,-310.57459591,0.0003752,2]
[421942481,1778358657000,-892.47111794,0.0003752,2]
[421942502,1778358657000,-300.0,0.0003752,2]
[421942486,1778358657000,-300.0,0.0003752,2]
[421942520,1778358657000,-309.26886467,0.0003752,2]
[421942455,1778358657000,-399.46100559,0.0003752,2]
[421942456,1778358657000,-725.31429466,0.0003752,2]
[421942459,1778358657000,-300.25804147,0.0003752,2]
[421942460,1778358657000,-853.29787158,0.0003752,2]
[421942457,1778358657000,-301.48155124,0.0003752,2]
[421942458,1778358657000,-300.0,0.0003752,2]
[421942461,1778358657000,-1794.44722741,0.0003752,2]
[421942463,1778358657000,-343.62395792,0.0003752,2]
[421942462,1778358657000,-526.35006308,0.0003752,2]
[421942464,1778358657000,-1145.98254531,0.0003752,2]
[421942465,1778358657000,-309.26886467,0.0003752,2]
[421942466,1778358657000,-863.54795654,0.0003752,2]
[421942467,1778358657000,-310.57459591,0.0003752,2]
[421942468,1778358657000,-367.5063156,0.0003752,2]
[421942475,1778358657000,-300.0,0.0003752,2]
[421942474,1778358657000,-309.51003376,0.0003752,2]
[421942469,1778358657000,-463.36822182,0.0003752,2]
[421942472,1778358657000,-300.0,0.0003752,2]
[421942470,1778358657000,-576.5741924,0.0003752,2]
[421942471,1778358657000,-451.4433371,0.0003752,2]
[421942473,1778358657000,-483.58541473,0.0003752,2]
[421942477,1778358657000,-492.17769921,0.0003752,2]
[421942476,1778358657000,-1093.57565763,0.0003752,2]
[421942478,1778358657000,-603.8329142,0.0003752,2]
[421942479,1778358657000,-300.0,0.0003752,2]
[421942510,1778358657000,-399.46100559,0.0003752,2]
[421942504,1778358657000,-492.17769921,0.0003752,2]
[421942512,1778358657000,-301.48155124,0.0003752,2]
[421942540,1778358657000,-300.0,0.0003752,2]
[421942538,1778358657000,-725.31429466,0.0003752,2]
[421942543,1778358657000,-1794.44722741,0.0003752,2]
[421942541,1778358657000,-300.25804147,0.0003752,2]
[421942548,1778358657000,-863.54795654,0.0003752,2]
[421942547,1778358657000,-309.26886467,0.0003752,2]
[421942545,1778358657000,-526.35006308,0.0003752,2]
[421942549,1778358657000,-310.57459591,0.0003752,2]
[421942550,1778358657000,-463.36822182,0.0003752,2]
[421942546,1778358657000,-1145.98254531,0.0003752,2]
[421942556,1778358657000,-300.0,0.0003752,2]
[421942553,1778358657000,-300.0,0.0003752,2]
[421942554,1778358657000,-483.58541473,0.0003752,2]
[421942551,1778358657000,-576.5741924,0.0003752,2]
[421942552,1778358657000,-451.4433371,0.0003752,2]
[421942555,1778358657000,-309.51003376,0.0003752,2]
[421942558,1778358657000,-492.17769921,0.0003752,2]
[421942557,1778358657000,-1093.57565763,0.0003752,2]
[421942564,1778358657000,-399.46100559,0.0003752,2]
[421942562,1778358657000,-1065.80891604,0.0003752,2]
[421942563,1778358657000,-892.47111794,0.0003752,2]
[421942565,1778358657000,-725.31429466,0.0003752,2]
[421942560,1778358657000,-300.0,0.0003752,2]
[421942559,1778358657000,-603.8329142,0.0003752,2]
[421942509,1778358657000,-892.47111794,0.0003752,2]
[421942539,1778358657000,-301.48155124,0.0003752,2]
[421942542,1778358657000,-853.29787158,0.0003752,2]
[421942561,1778358657000,-527.1999469,0.0003752,2]
[421942533,1778358657000,-300.0,0.0003752,2]
[421942544,1778358657000,-343.62395792,0.0003752,2]
[421942511,1778358657000,-725.31429466,0.0003752,2]
[421942515,1778358657000,-853.29787158,0.0003752,2]
[421942513,1778358657000,-300.0,0.0003752,2]
[421942517,1778358657000,-343.62395792,0.0003752,2]
[421942519,1778358657000,-1145.98254531,0.0003752,2]
[421942566,1778358657000,-301.48155124,0.0003752,2]
[421942518,1778358657000,-526.35006308,0.0003752,2]
[421942514,1778358657000,-300.25804147,0.0003752,2]
[421942521,1778358657000,-863.54795654,0.0003752,2]
[421942523,1778358657000,-463.36822182,0.0003752,2]
[421942524,1778358657000,-576.5741924,0.0003752,2]
[421942516,1778358657000,-1794.44722741,0.0003752,2]
[421942530,1778358657000,-1093.57565763,0.0003752,2]
[421942527,1778358657000,-483.58541473,0.0003752,2]
[421942536,1778358657000,-892.47111794,0.0003752,2]
[421942535,1778358657000,-1065.80891604,0.0003752,2]
[421942534,1778358657000,-527.1999469,0.0003752,2]
[421942531,1778358657000,-492.17769921,0.0003752,2]
[421942537,1778358657000,-399.46100559,0.0003752,2]
[421942522,1778358657000,-310.57459591,0.0003752,2]
[421942529,1778358657000,-300.0,0.0003752,2]
[421942532,1778358657000,-603.8329142,0.0003752,2]
[421942526,1778358657000,-300.0,0.0003752,2]
[421942525,1778358657000,-451.4433371,0.0003752,2]
[421942528,1778358657000,-309.51003376,0.0003752,2]
[421942589,1778358658000,-2902.4625041,0.00037859,2]
[421942585,1778358658000,-5800.0,0.00037834,2]
[421942590,1778358658000,-5800.0,0.0003786,2]
[421942588,1778358658000,-2009.1257015,0.00037852,2]
[421942592,1778358658000,-5800.0,0.00037877,2]
[421942591,1778358658000,-5800.0,0.00037868,2]
[421942596,1778358658000,-15015.13470313,0.00038,120]
[421942598,1778358658000,-471.14777192,0.00038,2]
[421942599,1778358658000,-3323.46291429,0.00038,120]
[421942602,1778358658000,-200.0,0.00038,2]
[421942601,1778358658000,-238323.68635902,0.00038,2]
[421942595,1778358658000,-5800.0,0.00037885,2]
[421942600,1778358658000,-1006.37235936,0.00038,2]
[421942604,1778358658000,-194.0,0.00038,120]
[421942603,1778358658000,-150.0,0.00038,120]
[421942605,1778358658000,-274.84895681,0.00038,2]
[421942584,1778358658000,-5800.0,0.00037826,2]
[421942597,1778358658000,-651.51,0.00038,120]
[421942594,1778358658000,-197.69395069,0.00037885,2]
[421942581,1778358658000,-350.0,0.00037808,2]
[421942593,1778358658000,-205.43868534,0.0003788,2]
[421942617,1778358658000,-2320.0,0.00038329,120]
[421942569,1778358658000,-400.0,0.0003758,2]
[421942568,1778358658000,-400.0,0.0003758,2]
[421942567,1778358658000,-1547.4949243,0.00037572,10]
[421942572,1778358658000,-639.28,0.000376,7]
[421942571,1778358658000,-4403.39184989,0.0003759,2]
[421942570,1778358658000,-708.85469638,0.0003758,2]
[421942573,1778358658000,-3576.70873663,0.00037638,2]
[421942582,1778358658000,-5800.0,0.00037809,2]
[421942575,1778358658000,-1444.0,0.00037753,120]
[421942580,1778358658000,-1045.0,0.000378,7]
[421942574,1778358658000,-501.0,0.00037694,15]
[421942577,1778358658000,-2180.65171,0.00037799,30]
[421942579,1778358658000,-1000.0,0.000378,7]
[421942578,1778358658000,-1000.0,0.000378,7]
[421942583,1778358658000,-5800.0,0.00037817,2]
[421942586,1778358658000,-5800.0,0.00037843,2]
[421942587,1778358658000,-5800.0,0.00037851,2]
[421942576,1778358658000,-150.0,0.0003778,2]
[421942606,1778358658000,-500.00000001,0.000381,120]
[421942607,1778358658000,-160.0,0.000381,56]
[421942610,1778358658000,-200.0,0.000381,120]
[421942618,1778358658000,-2021.0,0.00038329,120]
[421942639,1778358658000,-9981.042,0.00038625,2]
[421942637,1778358658000,-49267.58970896,0.000385,2]
[421942640,1778358658000,-2135.4604,0.00038625,2]
[421942636,1778358658000,-2135.4604,0.00038488,2]
[421942635,1778358658000,-9981.042,0.00038488,2]
[421942638,1778358658000,-639.28,0.000385,30]
[421942641,1778358658000,-2005.9555727,0.00038629,30]
[421942631,1778358658000,-155.37,0.00038356,60]
[421942634,1778358658000,-163.68337326,0.00038481,2]
[421942643,1778358658000,-1818.0,0.0003863,60]
[421942644,1778358658000,-1561.0,0.0003863,30]
[421942648,1778358658000,-1032.84140826,0.00038762,2]
[421942646,1778358658000,-431.81,0.000387,30]
[421942647,1778358658000,-160.0,0.000387,58]
[421942645,1778358658000,-623.58,0.000387,30]
[421942649,1778358658000,-322.0,0.0003012,30]
[421942650,1778358658000,-340.34366678,0.0003012,30]
[421942642,1778358658000,-1818.0,0.0003863,30]
[421942632,1778358658000,-1561.0,0.00038356,30]
[421942633,1778358658000,-7171.5,0.00038421,2]
[421942620,1778358658000,-1873.0,0.00038329,120]
[421942608,1778358658000,-160.0,0.000381,56]
[421942609,1778358658000,-639.28,0.000381,7]
[421942611,1778358658000,-289.0,0.000381,120]
[421942612,1778358658000,-1802.43539172,0.000381,2]
[421942613,1778358658000,-151.0,0.00038125,30]
[421942615,1778358658000,-501.0,0.00038298,16]
[421942625,1778358658000,-1831.08742975,0.00038329,120]
[421942614,1778358658000,-243.27785889,0.0003818,2]
[421942619,1778358658000,-2405.0,0.00038329,120]
[421942616,1778358658000,-2320.0,0.00038329,120]
[421942621,1778358658000,-1873.0,0.00038329,120]
[421942629,1778358658000,-9981.042,0.00038351,2]
[421942627,1778358658000,-150.0,0.00038329,120]
[421942628,1778358658000,-222.0,0.00038329,120]
[421942630,1778358658000,-2135.4604,0.00038351,2]
[421942624,1778358658000,-1831.08742975,0.00038329,120]
[421942623,1778358658000,-2487.5,0.00038329,120]
[421942626,1778358658000,-224.0,0.00038329,120]
[421942622,1778358658000,-2487.5,0.00038329,120]
[421942652,1778358659000,-172.726225,0.0003013,7]
[421942651,1778358659000,-1575.77156903,0.00029226,2]
[421942654,1778358659000,-66.54366298,0.00031,7]
[421942653,1778358659000,-172.726225,0.00031,7]
[421942655,1778358659000,-106.18256202,0.00031,7]
[421942658,1778358659000,-172.726225,0.00033,7]
[421942657,1778358659000,-172.726225,0.00032877,7]
[421942659,1778358659000,-172.726225,0.000345,7]
[421942665,1778358659000,-888.85484079,0.0003013,11]
[421942664,1778358659000,-1000.0,0.0003013,11]
[421942663,1778358659000,-2661.90878018,0.00024629,2]
[421942660,1778358659000,-3.68200924,0.00035616,7]
[421942662,1778358659000,-4011.2,0.00024629,2]
[421942656,1778358659000,-172.726225,0.00032877,7]
[421942661,1778358659000,-602.0,0.00024629,2]
[421942668,1778359157000,-161.212,0.00019657,2]
[421942672,1778359189000,-4221.74326281,0.00020057,2]
[421942670,1778359189000,-168.0,0.0002,2]
[421942671,1778359189000,-178.0,0.0002,2]
[421942669,1778359189000,-4567.74326281,0.0001999,2]
[421942673,1778359190000,-4567.74326281,0.00020057,2]
[421942674,1778359232000,954.11536681,0.00027397,120]
[421942680,1778359623000,-192.21260576,0.00020057,2]
[421942679,1778359623000,-151.82440549,0.00020057,2]
[421942678,1778359623000,-150.0,0.00020057,2]
[421942677,1778359623000,-12470.58375689,0.00020057,2]
[421942675,1778359623000,-161.212,0.00019657,2]
[421942676,1778359623000,-1329.8779,0.00019958,2]
[421942681,1778359623000,-1000.0,0.00020058,2]
[421942683,1778359633000,-539394.28933186,0.00020058,2]
[421942682,1778359633000,-150.0,0.00020058,21]
[421942687,1778359831000,-11064.22968362,0.00020058,2]
[421942690,1778359831000,-2433.60632184,0.00020058,2]
[421942688,1778359831000,-2513.7237219,0.00020058,2]
[421942689,1778359831000,-1300.0,0.00020058,2]
[421942705,1778359838000,-1465.35479139,0.00020058,2]
[421942704,1778359838000,-2300.586056,0.00020058,2]
[421942743,1778359840000,-4592.0,0.00020058,2]
[421942746,1778359840000,-2511.0,0.00020058,2]
[421942747,1778359840000,-1844.09,0.00020058,2]
[421942748,1778359840000,-3941.98163635,0.00020058,2]
[421942745,1778359840000,-2365.275,0.00020058,2]
[421942749,1778359840000,-734.27404387,0.00020058,2]
[421942750,1778359840000,-11324.37545652,0.00020058,2]
[421942751,1778359840000,-300.0,0.00020058,2]
[421942744,1778359840000,-904.00029784,0.00020058,2]
[421942772,1778359843000,-54808.07123286,0.00021401,2]
[421942765,1778359843000,-438.26454667,0.0002009,2]
[421942764,1778359843000,-467473.45425881,0.00020058,2]
[421942771,1778359843000,-214.73073128,0.00021059,2]
[421942773,1778359843000,-20641.25761697,0.00021401,2]
[421942770,1778359843000,-208.0536425,0.00021043,2]
[421942768,1778359843000,-178.0,0.00021,2]
[421942769,1778359843000,-1764.70861649,0.00021,2]
[421942766,1778359843000,-6657.22335235,0.0002019,2]
[421942767,1778359843000,-2459.71156633,0.0002029,2]
[421942783,1778359846000,-15602.89459432,0.00021401,2]
[421942784,1778359846000,-2022.16483153,0.00022,2]
[421942782,1778359846000,-4930.54698951,0.00021401,2]
[421942786,1778359846000,-6657.22335226,0.00022367,2]
[421942780,1778359846000,-645.75968916,0.00021401,2]
[421942779,1778359846000,-506.27268784,0.00021401,2]
[421942787,1778359846000,-208.52318185,0.00022407,2]
[421942781,1778359846000,-4882.89708624,0.00021401,2]
[421942785,1778359846000,-178.0,0.00022,2]
[421942792,1778359846000,-273.38193256,0.00023488,2]
[421942791,1778359846000,-402.0,0.0002339,2]
[421942788,1778359846000,-2459.71156632,0.00022456,2]
[421942790,1778359846000,-438.26454662,0.00023159,2]
[421942793,1778359846000,-406.0,0.0002385,2]
[421942794,1778359846000,-178.0,0.00024,2]
[421942795,1778359846000,-503.0,0.00024397,2]
[421942796,1778359846000,-5508.33599454,0.00024543,2]
[421942789,1778359846000,-178.0,0.00023,2]
[421942801,1778360066000,280.89,0.00013694,2]
[421942800,1778360066000,280.89,0.0001301,2]
[421942802,1778360067000,280.89,0.00014379,2]
[421942803,1778360117000,-280.89,0.00015064,2]
[421942804,1778360131000,-280.89,0.00015749,2]
[421942805,1778360432000,184.0,0.0002124,120]
[421942806,1778360433000,184.0,0.00022302,120]
[421942807,1778360435000,184.0,0.00023417,120]
[421942809,1778360493000,10000.01,0.00015,2]
[421942808,1778360493000,10000.01,0.00015,2]
[421942812,1778360494000,381718.96070975,0.00015,2]
[421942811,1778360494000,10000.01,0.00015,2]
[421942810,1778360494000,10000.01,0.00015,2]
[421942815,1778360673000,10000.01,0.00012,2]
[421942814,1778360673000,10000.01,0.00012,2]
[421942816,1778360673000,537162.28261956,0.00012,2]
[421942817,1778360673000,179848.0,0.00012,2]
[421942813,1778360673000,10000.01,0.00012,2]
[421942819,1778360838000,-10000.01,0.000107,2]
[421942818,1778360838000,-10000.01,0.000107,2]
[421942823,1778360839000,-10000.01,0.000107,2]
[421942822,1778360839000,-10000.01,0.000107,2]
[421942820,1778360839000,-150.0,0.00010699,2]
[421942821,1778360839000,-9850.01,0.000107,2]
[421942825,1778360840000,-10000.01,0.000107,2]
[421942824,1778360840000,-10000.01,0.000107,2]
[421942826,1778360841000,-250.0,0.000107,2]
[421942827,1778360841000,-9750.01,0.000107,2]
[421942828,1778360845000,800.0,0.000107,3]
[421942829,1778360847000,1600.0,0.000108,3]
[421942830,1778360849000,2400.0,0.000109,3]
[421942831,1778360851000,3200.0,0.000119,4]
[421942838,1778360950000,-5172.35965132,0.000107,2]
[421942837,1778360950000,-198.42463048,0.00010699,2]
[421942836,1778360950000,-180.53811299,0.00010699,2]
[421942835,1778360950000,-160.77743921,0.00010647,2]
[421942839,1778360957000,-39698.56226,0.000107,2]
[421942840,1778360963000,-9513.02420788,0.000107,2]
[421942841,1778360968000,-304775.8546,0.000107,2]
[421942842,1778360985000,206.88,0.00025875,120]
[421942847,1778361031000,-1200.0,0.00010699,2]
[421942848,1778361031000,-2192.02956514,0.000107,2]
[421942846,1778361031000,-166.93555904,0.0001069,2]
[421942849,1778361032000,-682855.32346386,0.000107,2]
[421942850,1778361032000,-193241.67286906,0.000107,2]
[421942854,1778361032000,-828.05339152,0.000107,2]
[421942852,1778361032000,-248805.64666698,0.000107,2]
[421942853,1778361032000,-1254.41808677,0.000107,2]
[421942851,1778361032000,-245459.99463032,0.000107,2]
[421942857,1778361038000,-68252.6134203,0.000107,2]
[421942859,1778361038000,-10451.58690943,0.00011419,2]
[421942858,1778361038000,-1889.15941613,0.00011319,2]
[421942861,1778361038000,-174.55419718,0.00011719,2]
[421942860,1778361038000,-40730.70228673,0.00011519,2]
[421942862,1778361038000,-250.0,0.00011769,2]
[421942864,1778361038000,-160.77743921,0.0001194,2]
[421942865,1778361038000,-500.0,0.00011973,2]
[421942867,1778361038000,-171576.93411913,0.00012,2]
[421942869,1778361038000,-380.52932165,0.00012,2]
[421942868,1778361038000,-27128.50850731,0.00012,2]
[421942870,1778361038000,-492.18630985,0.00012,2]
[421942863,1778361038000,-480.0,0.00011769,2]
[421942866,1778361038000,-303.101,0.00011999,2]
[421942872,1778361040000,-535.94538832,0.00012,2]
[421942871,1778361040000,-480.53080747,0.00012,2]
[421943138,1778361043000,-669.67519303,0.00012,2]
[421943572,1778361046000,-355.79952,0.00012,2]
[421943584,1778361046000,-3080.15434853,0.00012,2]
[421944823,1778361249000,150.0,0.00014373,21]
[421944827,1778361595000,154.13,7.681e-05,2]
[421944826,1778361595000,154.13,7.041e-05,2]
[421944825,1778361595000,154.13,6.401e-05,2]
[421944830,1778361596000,154.13,9.601e-05,2]
[421944829,1778361596000,154.13,8.961e-05,2]
[421944828,1778361596000,154.13,8.321e-05,2]
[421944832,1778361902000,-157.963873,0.00010645,2]
[421944831,1778361902000,-154.13,0.00010241,2]
[421944834,1778361902000,-152.06590644,0.00010645,2]
[421944833,1778361902000,-191.9060498,0.00010645,2]
[421944837,1778361950000,-112.79376855,0.00011522,2]
[421944836,1778361950000,-154.13,0.00010881,2]
[421944835,1778361950000,-11.24409356,0.00010645,2]
[421944842,1778361955000,-219.31327913,0.00011889,2]
[421944838,1778361955000,-41.33623145,0.00011522,2]
[421944840,1778361955000,-212.99,0.00011782,2]
[421944841,1778361955000,-157.65,0.00011797,2]
[421944843,1778361955000,-2000.0,0.00011899,2]
[421944839,1778361955000,-1843.48,0.00011556,2]
[421944844,1778361955000,-219.31327913,0.00011899,2]
[421944849,1778361955000,-3122.58739451,0.00011962,2]
[421944850,1778361955000,-53725.69775775,0.00011989,2]
[421944845,1778361955000,-1200.0,0.00011961,2]
[421944846,1778361955000,-300.0,0.00011961,2]
[421944847,1778361955000,-300.0,0.00011961,2]
[421944848,1778361955000,-36657.63205803,0.00011962,2]
[421944856,1778361962000,-505.02218589,0.00011999,2]
[421944855,1778361962000,-500.0,0.00011999,2]
[421944854,1778361962000,-1004.85002258,0.00011999,2]
[421944853,1778361962000,-300.0,0.00011998,2]
[421944852,1778361962000,-150.0,0.00011989,2]
[421944851,1778361962000,-6112.88789449,0.00011989,2]
[421944868,1778361963000,-500.0,0.00011999,2]
[421944866,1778361963000,-500.0,0.00011999,2]
[421944864,1778361963000,-318.62007861,0.00011999,2]
[421944865,1778361963000,-500.0,0.00011999,2]
[421944863,1778361963000,-500.0,0.00011999,2]
[421944859,1778361963000,-500.0,0.00011999,2]
[421944861,1778361963000,-500.0,0.00011999,2]
[421944860,1778361963000,-500.0,0.00011999,2]
[421944858,1778361963000,-240.97555237,0.00011999,2]
[421944867,1778361963000,-500.0,0.00011999,2]
[421944862,1778361963000,-500.0,0.00011999,2]
[421944870,1778361963000,-500.0,0.00011999,2]
[421944857,1778361963000,-192.12118609,0.00011999,2]
[421944871,1778361963000,-500.0,0.00011999,2]